fUSD/lending_fUSD_20250515
["ID","MTS","AMOUNT","RATE_DAILY","PERIOD"]
[361187590,1747327901728,-468.28,0.00016478,2]
[361187591,1747327901737,-803.08,0.00016478,2]
[361187592,1747327901747,-492.86,0.00016478,2]
[361187593,1747327901756,-400.0,0.00016478,2]
[361187594,1747327901765,-1872.23,0.00016478,2]
[361187595,1747327901775,-400.0,0.00016478,2]
[361187596,1747327901784,-934.06,0.00016478,2]
[361187597,1747327901793,-1231.42,0.00016478,2]
[361187598,1747327901803,-400.0,0.00016478,2]
[361187599,1747327901812,-1091.29,0.00016478,2]
[361187600,1747327901821,-853.44,0.00016478,2]
[361187601,1747327901830,-434.33,0.00016478,2]
[361187602,1747327901839,-424.3,0.00016478,2]
[361187603,1747327901849,-548.19,0.00016478,2]
[361187604,1747327901859,-13778.97,0.00016478,2]
[361187605,1747327901868,-400.0,0.00016478,2]
[361187606,1747327901877,-543.47,0.00016478,2]
[361187607,1747327901887,-400.0,0.00016478,2]
[361187608,1747327901896,-573.62,0.00016478,2]
[361187609,1747327901906,-512.73,0.00016478,2]
[361187610,1747327901915,-416.13,0.00016478,2]
[361187611,1747327901924,-605.73,0.00016478,2]
[361187612,1747327901933,-428.31,0.00016478,2]
[361187613,1747327901943,-637.82,0.00016478,2]
[361187614,1747327901952,-848.22,0.00016478,2]
[361187615,1747327901962,-436.04,0.00016478,2]
[361187616,1747327901971,-400.0,0.00016478,2]
[361187617,1747327901982,-400.0,0.00016478,2]
[361187618,1747327901991,-675.77,0.00016478,2]
[361187619,1747327902000,-598.44,0.00016478,2]
[361187620,1747327902010,-256.26,0.00016479,2]
[361187621,1747327902019,-162.65,0.00016589,2]
[361187622,1747327902028,-162.65,0.00016589,2]
[361187623,1747327902037,-162.65,0.00016589,2]
[361187624,1747327902050,-162.65,0.00016589,2]
[361187625,1747327902059,-231.28369723,0.00016614,2]
[361187626,1747327902068,-773.2413689,0.00016614,2]
[361187627,1747327902078,-178.76,0.00016712,2]
[361187628,1747327902088,-1311.61,0.00016752,2]
[361187629,1747327902097,-468.28,0.00016752,2]
[361187630,1747327902106,-803.08,0.00016752,2]
[361187631,1747327902115,-492.86,0.00016752,2]
[361187632,1747327902126,-400.0,0.00016752,2]
[361187633,1747327902136,-1872.23,0.00016752,2]
[361187634,1747327902146,-400.0,0.00016752,2]
[361187635,1747327902155,-934.06,0.00016752,2]
[361187636,1747327902166,-1231.42,0.00016752,2]
[361187637,1747327902176,-400.0,0.00016752,2]
[361187638,1747327902185,-1091.29,0.00016752,2]
[361187639,1747327902195,-853.44,0.00016752,2]
[361187640,1747327902204,-424.3,0.00016752,2]
[361187641,1747327902214,-548.19,0.00016752,2]
[361187642,1747327902223,-13778.97,0.00016752,2]
[361187643,1747327902234,-400.0,0.00016752,2]
[361187644,1747327902244,-543.47,0.00016752,2]
[361187645,1747327902253,-400.0,0.00016752,2]
[361187646,1747327902263,-573.62,0.00016752,2]
[361187647,1747327902273,-512.73,0.00016752,2]
[361187648,1747327902282,-416.13,0.00016752,2]
[361187649,1747327902291,-428.31,0.00016752,2]
[361187650,1747327902300,-605.73,0.00016752,2]
[361187651,1747327902310,-637.82,0.00016752,2]
[361187652,1747327902320,-848.22,0.00016752,2]
[361187653,1747327902330,-400.0,0.00016752,2]
[361187654,1747327902339,-321.05593941,0.00016752,2]
[361187655,1747327902349,-675.77,0.00016752,2]
[361187656,1747327902359,-598.44,0.00016752,2]
[361187657,1747327902369,-914.92,0.00016783,2]
[361187658,1747327902378,-690.78711365,0.00016832,2]
[361187659,1747327902388,-1395.39,0.00016975,2]
[361187660,1747327902397,-1311.61,0.00017026,2]
[361187661,1747327902407,-468.28,0.00017026,2]
[361187662,1747327902416,-803.08,0.00017026,2]
[361187663,1747327902426,-492.86,0.00017026,2]
[361187664,1747327902435,-406.05335877,0.00017026,2]
[361187665,1747327902445,-1872.23,0.00017026,2]
[361187666,1747327902454,-400.0,0.00017026,2]
[361187667,1747327902464,-934.06,0.00017026,2]
[361187668,1747327902474,-1231.42,0.00017026,2]
[361187669,1747327902484,-488.86391251,0.00017026,2]
[361187670,1747327902493,-1091.29,0.00017026,2]
[361187671,1747327902502,-853.44,0.00017026,2]
[361187672,1747327902513,-424.3,0.00017026,2]
[361187673,1747327902524,-548.19,0.00017026,2]
[361187674,1747327902535,-13778.97,0.00017026,2]
[361187675,1747327902545,-152.2,0.00017026,2]
[361187676,1747327902554,-543.47,0.00017026,2]
[361187677,1747327902563,-483.39,0.00017026,2]
[361187678,1747327902572,-573.62,0.00017026,2]
[361187679,1747327902582,-512.73,0.00017026,2]
[361187680,1747327902591,-416.13,0.00017026,2]
[361187681,1747327902601,-605.73,0.00017026,2]
[361187682,1747327902610,-428.31,0.00017026,2]
[361187683,1747327902619,-637.82,0.00017026,2]
[361187684,1747327902629,-848.22,0.00017026,2]
[361187685,1747327902638,-375.05,0.00017026,2]
[361187686,1747327902648,-675.77,0.00017026,2]
[361187687,1747327902657,-598.44,0.00017026,2]
[361187688,1747327902667,-1138.0,0.000171,2]
[361187689,1747327902676,-366.90041907,0.00017138,2]
[361187690,1747327902686,-223.0315306,0.0001716,2]
[361187691,1747327902696,-155.0,0.00017161,2]
[361187692,1747327902705,-239.84119403,0.00017162,2]
[361187693,1747327902715,-411.92622707,0.00017162,2]
[361187694,1747327902725,-6071.69711869,0.00017245,2]
[361187695,1747327902737,-1311.71,0.000173,2]
[361187696,1747327902746,-468.41,0.000173,2]
[361187697,1747327902755,-803.15966534,0.000173,2]
[361187698,1747327902765,-493.02,0.000173,2]
[361187699,1747327902775,-1872.26292884,0.000173,2]
[361187700,1747327902785,-398.61350441,0.000173,2]
[361187701,1747327902794,-819.93,0.000173,2]
[361187702,1747327902804,-934.22905736,0.000173,2]
[361187703,1747327902814,-1231.43960976,0.000173,2]
[361187704,1747327902823,-1091.39343572,0.000173,2]
[361187705,1747327902832,-853.44,0.000173,2]
[361187706,1747327902841,-424.31,0.000173,2]
[361187707,1747327902851,-548.33,0.000173,2]
[361187708,1747327902860,-13779.09466393,0.000173,2]
[361187709,1747327902869,-543.67674444,0.000173,2]
[361187710,1747327902879,-573.74574353,0.000173,2]
[361187711,1747327902888,-512.95,0.000173,2]
[361187712,1747327902898,-416.22275164,0.000173,2]
[361187713,1747327902908,-605.86397695,0.000173,2]
[361187714,1747327902917,-428.49131588,0.000173,2]
[361187715,1747327902926,-637.94,0.000173,2]
[361187716,1747327902936,-848.24336903,0.000173,2]
[361187717,1747327902945,-675.82166739,0.000173,2]
[361187718,1747327902955,-598.63,0.000173,2]
[361187719,1747327902964,-865.02,0.00017483,2]
[361187720,1747327902974,-690.78711365,0.00017679,2]
[361187721,1747327902986,-248.71531821,0.0001771,2]
[361187722,1747327902995,-161.3,0.00017724,2]
[361187723,1747327903005,-5000.7,0.00017808,2]
[361187724,1747327903015,-635.13,0.00017808,2]
[361187725,1747327903024,-1500.0,0.00017808,7]
[361187726,1747327903034,-1500.0,0.00017808,7]
[361187727,1747327903044,-1500.0,0.00017808,7]
[361187728,1747327903055,-1500.0,0.00017808,7]
[361187729,1747327903065,-1500.0,0.00017808,7]
[361187730,1747327903074,-1500.0,0.00017808,7]
[361187731,1747327903085,-1500.0,0.00017808,7]
[361187732,1747327903096,-1500.0,0.00017808,7]
[361187733,1747327903106,-1500.0,0.00017808,7]
[361187734,1747327903116,-604.008132,0.00017808,7]
[361187735,1747327903125,-1000.0,0.00017876,2]
[361187736,1747327903135,-2800.0,0.00017876,2]
[361187737,1747327903146,-972.50308451,0.00017949,2]
[361187738,1747327903155,-7010.7037028,0.00018,2]
[361187739,1747327903165,-650.0,0.00018,2]
[361187740,1747327903175,-1000.0,0.00018,2]
[361187741,1747327903184,-243.103843,0.00018,2]
[361187742,1747327903194,-160.36841055,0.00018258,2]
[361187743,1747327903203,-150.18,0.0001826,2]
[361187744,1747327903212,-352.99,0.0001826,2]
[361187745,1747327903223,-705.71,0.0001826,2]
[361187746,1747327903239,-162.65,0.0001826,2]
[361187747,1747327903249,-351.95,0.0001826,2]
[361187748,1747327903258,-162.65,0.0001826,2]
[361187749,1747327903268,-162.65,0.0001826,2]
[361187750,1747327903278,-162.65,0.0001826,2]
[361187751,1747327903288,-162.65,0.0001826,2]
[361187752,1747327903298,-162.65,0.0001826,2]
[361187753,1747327903308,-162.65,0.0001826,2]
[361187754,1747327903318,-162.65,0.0001826,2]
[361187755,1747327903327,-6071.69711869,0.00018314,2]
[361187756,1747327903338,-2172.4182892,0.0001849,2]
[361187757,1747327903347,-1395.39,0.00018518,2]
[361187758,1747327903357,-690.78711365,0.00018527,2]
[361187759,1747327903367,-231.28369723,0.00018529,2]
[361187760,1747327903377,-999.7,0.00018583,2]
[361187761,1747327903386,-366.90041907,0.00018698,2]
[361187762,1747327903396,-152.0,0.00018713,3]
[361187763,1747327903406,-819.93,0.00018779,2]
[361187764,1747327903416,-819.93,0.00018779,2]
[361187765,1747327903426,-819.93,0.00018779,2]
[361187766,1747327903435,-819.93,0.00018779,2]
[361187767,1747327903445,-820.09155209,0.00018779,2]
[361187768,1747327903455,-150.0,0.00018779,2]
[361187769,1747327903465,-398401.79969477,0.0001878,2]
[361187770,1747327903475,-650.0,0.000188,9]
[361187771,1747327903487,-180.0,0.0001888,2]
[361187772,1747327903496,-153.35304554,0.000189,2]
[361187773,1747327903506,-1000.0,0.00018972,2]
[361187774,1747327903516,-2800.0,0.00018972,2]
[361187775,1747327903527,-1576.7152998,0.00018987,2]
[361187776,1747327903537,-55251.4286488,0.00018987,2]
[361187777,1747327903546,-5970.4820255,0.00018987,2]
[361187778,1747327903555,-150.0,0.00018999,2]
[361187779,1747327903565,-150.0,0.00018999,2]
[361187780,1747327903575,-150.0,0.00018999,2]
[361187781,1747327903585,-1000.0,0.00019,2]
[361187782,1747327903594,-3016.0,0.00019,2]
[361187783,1747327903604,-1002.45897796,0.00019,2]
[361187784,1747327903614,-4005.99508822,0.00019,2]
[361187785,1747327903623,-3059.51603899,0.00019,2]
[361187786,1747327903633,-766305.47249354,0.00019,2]
[361187787,1747327904343,-315.21851306,0.00010998,2]
[361187788,1747327904365,-84.78148694,0.00010998,2]
[361187789,1747327904376,-360.74866065,0.00010998,2]
[361187790,1747327904387,-500.0,0.00010998,2]
[361187791,1747327904397,-151.0,0.0001126,2]
[361187792,1747327904408,-400.0,0.00011272,2]
[361187793,1747327904418,-506.29,0.00011272,2]
[361187794,1747327904427,-308.75485197,0.00011546,2]
[361187795,1747327904706,-295.97996001,0.00010386,2]
[361187796,1747327904717,-3182.03003999,0.00010386,2]
[361187797,1747327904728,-400.0,0.00010998,2]
[361187798,1747327904737,-400.0,0.00010998,2]
[361187799,1747327904746,-400.0,0.00010998,2]
[361187800,1747327904756,-400.0,0.00010998,2]
[361187801,1747327904765,-294.28199308,0.00010998,2]
[361187802,1747327904790,-105.71800692,0.00010998,2]
[361187803,1747327904800,-400.0,0.00010998,2]
[361187804,1747327904809,-400.0,0.00010998,2]
[361187805,1747327904818,-400.0,0.00011272,2]
[361187806,1747327904828,-400.0,0.00011272,2]
[361187807,1747327904838,-174.83,0.00011272,2]
[361187808,1747327904847,-247.45199888,0.00011272,2]
[361187809,1747327904871,-400.0,0.00010998,2]
[361187810,1747327904882,-152.54800112,0.00011272,2]
[361187811,1747327904891,-400.0,0.00011272,2]
[361187812,1747327904902,-169.00299465,0.00011546,2]
[361187813,1747327904912,-400.0,0.00011546,2]
[361187814,1747327904923,-400.0,0.00011546,2]
[361187815,1747327904933,-400.0,0.00011546,2]
[361187816,1747327904943,-400.0,0.00011546,2]
[361187817,1747327904953,-168.88,0.0001182,2]
[361187818,1747327904963,-400.0,0.0001182,2]
[361187819,1747327904972,-211.41,0.0001182,2]
[361187820,1747327904984,-300.0,0.0001182,2]
[361187821,1747327904994,-148889.4907818,0.00019,2]
[361187822,1747327905006,-6550.42415241,0.00019,2]
[361187823,1747327905019,-602.0,0.00019,2]
[361187824,1747327905032,-957.77914718,0.00019,2]
[361187825,1747327905051,-400.0,0.00011272,2]
[361187826,1747327905065,-100.0,0.00019,2]
[361187827,1747327905084,-151.4,0.00012094,2]
[361187828,1747327905093,-1435.63359657,0.00019,2]
[361187829,1747327905105,-2100.58269245,0.00019,2]
[361187830,1747327905116,-2042.8000012,0.00019,2]
[361187831,1747327905169,-22347.50043613,0.00019,2]
[361187832,1747327905180,-936.58782271,0.00019,2]
[361187833,1747327905199,-400.0,0.00011272,2]
[361187834,1747327905209,-800.23193712,0.00019,2]
[361187835,1747327905220,-1237.31323416,0.00019,2]
[361187836,1747327905233,-11968.96900003,0.00019,2]
[361187837,1747327905244,-1140.79999,0.00019,2]
[361187838,1747327905305,600.0,0.000109,3]
[361187839,1747327905644,1200.0,0.000118,4]
[361187840,1747327905903,1800.0,0.000119,4]
[361187843,1747328051407,467.3,0.00021945,30]
[361187858,1747328224952,398.0304544,0.00025,30]
[361187869,1747328364402,150.0,0.00010503,7]
[361187870,1747328367114,2538.14,0.00025,30]
[361187875,1747328398617,-450.0,0.0001,2]
[361187880,1747328445738,-414.53,0.00010377,2]
[361187881,1747328445764,-285.09302246,0.00010501,2]
[361187882,1747328445792,-250.0,0.00010551,2]
[361187883,1747328445820,-1200.0,0.00010601,2]
[361187884,1747328445848,-300.0,0.00010601,2]
[361187885,1747328445876,-300.0,0.00010601,2]
[361187886,1747328445904,-23250.37697754,0.00010602,2]
[361187895,1747328650879,-153.94,0.00010498,2]
[361187896,1747328679052,150.0,0.00013,5]
[361187918,1747328732440,809.58,8.221e-05,2]
[361187919,1747328793619,168.35,8.075e-05,2]
[361187920,1747328828122,400.0,0.000109,3]
[361187921,1747328830452,900.0,0.000118,4]
[361187922,1747328831732,400.0,0.00023287,30]
[361187923,1747328832323,1400.0,0.000119,4]
[361188056,1747328890792,-200.0,0.00010133,2]
[361188057,1747328890814,-809.58,0.00010485,2]
[361188058,1747328890841,-1200.0,0.00010498,2]
[361188059,1747328890862,-300.0,0.00010498,2]
[361188060,1747328890883,-300.0,0.00010498,2]
[361188061,1747328890904,-7190.42,0.00010499,2]
[361188062,1747328892166,-10000.0,0.00010499,2]
[361188063,1747328892989,-10000.0,0.00010499,2]
[361188064,1747328894008,-6514.45,0.00010499,2]
[361188065,1747328906450,400.0,0.00025,30]
[361188066,1747328911372,161.65,9.573e-05,2]
[361188067,1747328948829,-901.85,0.000102,2]
[361188068,1747328948850,-166.43,0.00010227,2]
[361188069,1747328948871,-166.43,0.0001023,2]
[361188070,1747328948891,-166.43,0.00010233,2]
[361188071,1747328948912,-166.43,0.00010235,2]
[361188072,1747328948931,-166.43,0.00010238,2]
[361188073,1747328948952,-166.43,0.00010241,2]
[361188074,1747328948972,-166.43,0.00010243,2]
[361188075,1747328948993,-166.43,0.00010246,2]
[361188076,1747328949014,-166.43,0.00010249,2]
[361188077,1747328949035,-166.43,0.00010252,2]
[361188078,1747328949057,-166.43,0.00010254,2]
[361188079,1747328949078,-166.43,0.00010257,2]
[361188080,1747328949097,-166.43,0.0001026,2]
[361188081,1747328949118,-166.43,0.00010262,2]
[361188082,1747328949140,-166.43,0.00010265,2]
[361188083,1747328949161,-166.43,0.00010268,2]
[361188084,1747328949182,-166.43,0.0001027,2]
[361188085,1747328949203,-166.43,0.00010273,2]
[361188086,1747328949225,-166.43,0.00010276,2]
[361188087,1747328949245,-166.43,0.00010278,2]
[361188088,1747328949265,-190.06201498,0.00010502,2]
[361188089,1747328949286,-11.42302246,0.00010602,2]
[361188090,1747328949305,-159.32,0.0001061,2]
[361188091,1747328949325,-190.06201496,0.00010695,2]
[361188092,1747328949346,-300.0,0.00010695,2]
[361188093,1747328949372,-150.0,0.00010695,2]
[361188094,1747328949394,-1350.89,0.0001076,2]
[361188095,1747328949416,-190.06201496,0.00010887,2]
[361188096,1747328949436,-562.70069489,0.00010897,2]
[361188097,1747328949459,-530.85,0.00010922,2]
[361188098,1747328949479,-2134.18023775,0.00010987,2]
[361188099,1747328952672,-10000.0,0.00010987,2]
[361188100,1747328953411,-10000.0,0.00010987,2]
[361188101,1747328953730,-1316.21651963,0.00010987,2]
[361188102,1747328953752,-154.92,0.00010988,2]
[361188103,1747328953773,-154.92,0.00010988,2]
[361188104,1747328953794,-200.0,0.00010996,2]
[361188105,1747328953814,-186.94268446,0.00010996,2]
[361188106,1747328953835,-152.64601384,0.00010996,2]
[361188107,1747328953855,-400.0,0.00010996,2]
[361188108,1747328953877,-400.0,0.00010996,2]
[361188109,1747328953898,-400.0,0.00010996,2]
[361188110,1747328953919,-400.0,0.00010996,2]
[361188111,1747328953941,-400.0,0.00010996,2]
[361188112,1747328953962,-400.0,0.00010996,2]
[361188113,1747328953984,-400.0,0.00010996,2]
[361188114,1747328954006,-537.22339517,0.00010996,2]
[361188115,1747328954029,-400.0,0.00010996,2]
[361188116,1747328954051,-400.0,0.00010996,2]
[361188117,1747328954073,-400.0,0.00010996,2]
[361188118,1747328954092,-473.19550001,0.00010996,2]
[361188119,1747328954112,-400.0,0.00010996,2]
[361188120,1747328954135,-400.0,0.00010996,2]
[361188121,1747328954157,-400.0,0.00010996,2]
[361188122,1747328954180,-400.0,0.00010996,2]
[361188123,1747328954202,-400.0,0.00010996,2]
[361188124,1747328954224,-400.0,0.00010996,2]
[361188125,1747328954249,-404.99657096,0.00010996,2]
[361188126,1747328954273,-18.93931593,0.00010996,2]
[361188127,1747328954422,-381.06068407,0.00010996,2]
[361188128,1747328954447,-400.0,0.00010996,2]
[361188129,1747328954471,-400.0,0.00010996,2]
[361188130,1747328954495,-197.85296276,0.00010996,2]
[361188131,1747328954517,-400.0,0.00010997,2]
[361188132,1747328954540,-400.0,0.00010997,2]
[361188133,1747328954562,-400.0,0.00010997,2]
[361188134,1747328954585,-400.0,0.00010997,2]
[361188135,1747328954608,-400.0,0.00010997,2]
[361188136,1747328954632,-400.0,0.00010997,2]
[361188137,1747328954655,-400.0,0.00010997,2]
[361188138,1747328954676,-400.0,0.00010997,2]
[361188139,1747328954699,-400.0,0.00010997,2]
[361188140,1747328954726,-400.0,0.00010997,2]
[361188141,1747328954747,-400.0,0.00010997,2]
[361188142,1747328954773,-400.0,0.00010997,2]
[361188143,1747328954795,-400.0,0.00010997,2]
[361188144,1747328954817,-400.0,0.00010997,2]
[361188145,1747328954841,-400.0,0.00010997,2]
[361188146,1747328954862,-400.0,0.00010997,2]
[361188147,1747328954884,-400.0,0.00010997,2]
[361188148,1747328954905,-433.58455788,0.00010997,2]
[361188149,1747328954926,-400.0,0.00010997,2]
[361188150,1747328954948,-400.0,0.00010997,2]
[361188151,1747328954970,-400.0,0.00010997,2]
[361188152,1747328954991,-187.50179529,0.00010997,2]
[361188174,1747328955559,-400.0,0.00010996,2]
[361188175,1747328955583,-212.49820471,0.00010997,2]
[361188176,1747328955606,-400.0,0.00010997,2]
[361188177,1747328955629,-400.0,0.00010997,2]
[361188178,1747328955651,-400.0,0.00010997,2]
[361188179,1747328955673,-400.0,0.00010997,2]
[361188180,1747328955696,-400.0,0.00010997,2]
[361188181,1747328955718,-400.0,0.00010997,2]
[361188182,1747328955740,-400.0,0.00010997,2]
[361188183,1747328955762,-400.0,0.00010997,2]
[361188184,1747328955784,-400.0,0.00010997,2]
[361188185,1747328955806,-400.0,0.00010997,2]
[361188186,1747328955827,-400.0,0.00010997,2]
[361188187,1747328955848,-400.0,0.00010997,2]
[361188188,1747328955868,-500.0,0.00010997,2]
[361188189,1747328955890,-152.63178814,0.00010997,2]
[361188190,1747328955912,-400.0,0.00010997,2]
[361188191,1747328955933,-400.0,0.00010997,2]
[361188192,1747328955954,-400.0,0.00010997,2]
[361188193,1747328955975,-400.0,0.00010997,2]
[361188194,1747328955997,-400.0,0.00010997,2]
[361188195,1747328956018,-400.08789425,0.00010997,2]
[361188196,1747328956040,-400.0,0.00010997,2]
[361188197,1747328956062,-400.0,0.00010997,2]
[361188198,1747328956084,-396.56692977,0.00010997,2]
[361188199,1747328956109,-338.21518313,0.00010997,2]
[361188200,1747328956142,-61.78481687,0.00010997,2]
[361188201,1747328956166,-400.0,0.00010997,2]
[361188202,1747328956188,-400.0,0.00010997,2]
[361188203,1747328956212,-400.0,0.00010997,2]
[361188204,1747328956237,-400.0,0.00010997,2]
[361188205,1747328956260,-400.0,0.00010997,2]
[361188206,1747328956283,-400.0,0.00010997,2]
[361188207,1747328956307,-400.0,0.00010997,2]
[361188208,1747328956330,-400.0,0.00010997,2]
[361188209,1747328956355,-400.0,0.00010997,2]
[361188210,1747328956382,-400.0,0.00010997,2]
[361188211,1747328956405,-400.0,0.00010997,2]
[361188212,1747328956425,-400.0,0.00010997,2]
[361188213,1747328956447,-400.0,0.00010997,2]
[361188214,1747328956468,-400.0,0.00010997,2]
[361188215,1747328956491,-400.0,0.00010997,2]
[361188216,1747328956514,-400.0,0.00010997,2]
[361188217,1747328956537,-400.0,0.00010997,2]
[361188218,1747328956559,-400.0,0.00010997,2]
[361188219,1747328956582,-400.0,0.00010997,2]
[361188220,1747328956604,-400.0,0.00010997,2]
[361188221,1747328956627,-400.0,0.00010997,2]
[361188222,1747328956649,-400.55864388,0.00010997,2]
[361188223,1747328956670,-404.06546028,0.00010997,2]
[361188224,1747328956693,-400.0,0.00010997,2]
[361188225,1747328956946,-333.59107897,0.00010997,2]
[361188226,1747328957177,-500.0,0.00010996,2]
[361188227,1747328957200,-66.40892103,0.00010997,2]
[361188228,1747328957221,-400.0,0.00010997,2]
[361188229,1747328957244,-400.0,0.00010997,2]
[361188230,1747328957266,-400.0,0.00010997,2]
[361188231,1747328957287,-400.0,0.00010997,2]
[361188232,1747328957307,-400.0,0.00010997,2]
[361188233,1747328957328,-400.0,0.00010997,2]
[361188234,1747328957348,-400.0,0.00010997,2]
[361188235,1747328957372,-400.0,0.00010997,2]
[361188236,1747328957395,-400.0,0.00010997,2]
[361188237,1747328957416,-400.0,0.00010997,2]
[361188238,1747328957438,-400.0,0.00010997,2]
[361188239,1747328957463,-400.0,0.00010997,2]
[361188240,1747328957486,-500.0,0.00010997,2]
[361188241,1747328957507,-400.0,0.00010997,2]
[361188242,1747328957528,-400.0,0.00010997,2]
[361188243,1747328957551,-400.0,0.00010997,2]
[361188244,1747328957573,-400.0,0.00010997,2]
[361188245,1747328957593,-400.0,0.00010997,2]
[361188246,1747328957614,-400.0,0.00010997,2]
[361188247,1747328957635,-212.49533185,0.00010997,2]
[361188248,1747328957658,-400.0,0.00010997,2]
[361188249,1747328957679,-400.0,0.00010997,2]
[361188250,1747328957700,-400.0,0.00010997,2]
[361188251,1747328957721,-321.09574712,0.00010997,2]
[361188252,1747328957748,-78.90425288,0.00010997,2]
[361188253,1747328957769,-400.0,0.00010997,2]
[361188254,1747328957790,-400.0,0.00010997,2]
[361188255,1747328957811,-400.0,0.00010997,2]
[361188256,1747328957831,-329.86788616,0.00010997,2]
[361188257,1747328957854,-400.0,0.00010997,2]
[361188258,1747328957875,-188.4415882,0.00010997,2]
[361188259,1747328957895,-400.0,0.00010997,2]
[361188260,1747328957916,-400.0,0.00010997,2]
[361188261,1747328957936,-400.0,0.00010997,2]
[361188262,1747328957957,-400.0,0.00010997,2]
[361188263,1747328957977,-400.0,0.00010997,2]
[361188264,1747328957998,-400.0,0.00010997,2]
[361188265,1747328958020,-239.28319093,0.00010997,2]
[361188266,1747328958041,-400.0,0.00010997,2]
[361188267,1747328958062,-400.0,0.00010997,2]
[361188268,1747328958083,-400.0,0.00010997,2]
[361188269,1747328958105,-400.0,0.00010997,2]
[361188270,1747328958126,-400.0,0.00010997,2]
[361188271,1747328958147,-400.0,0.00010997,2]
[361188272,1747328958167,-400.0,0.00010997,2]
[361188273,1747328958188,-250.0,0.00010997,2]
[361188274,1747328958209,-400.0,0.00010997,2]
[361188275,1747328958231,-400.0,0.00010997,2]
[361188276,1747328958252,-400.0,0.00010997,2]
[361188277,1747328958273,-400.0,0.00010997,2]
[361188278,1747328958292,-400.0,0.00010997,2]
[361188279,1747328958314,-113.50308183,0.00010997,2]
[361188280,1747328958839,-286.49691817,0.00010997,2]
[361188281,1747328958860,-400.0,0.00010997,2]
[361188282,1747328958886,-400.0,0.00010997,2]
[361188283,1747328958907,-400.0,0.00010997,2]
[361188284,1747328958927,-400.0,0.00010997,2]
[361188285,1747328958948,-400.0,0.00010997,2]
[361188286,1747328958969,-400.0,0.00010997,2]
[361188287,1747328958990,-400.0,0.00010997,2]
[361188288,1747328959012,-402.83880199,0.00010997,2]
[361188289,1747328959033,-400.0,0.00010997,2]
[361188290,1747328959054,-400.0,0.00010997,2]
[361188291,1747328959076,-400.0,0.00010997,2]
[361188292,1747328959097,-400.0,0.00010997,2]
[361188293,1747328959120,-243.74402343,0.00010997,2]
[361188294,1747328959144,-400.0,0.00010997,2]
[361188295,1747328959167,-400.0,0.00010997,2]
[361188296,1747328959188,-400.0,0.00010997,2]
[361188297,1747328959210,-400.0,0.00010997,2]
[361188298,1747328959230,-400.0,0.00010997,2]
[361188299,1747328959251,-400.0,0.00010997,2]
[361188300,1747328959272,-400.0,0.00010997,2]
[361188301,1747328959293,-400.0,0.00010997,2]
[361188302,1747328959316,-400.0,0.00010997,2]
[361188303,1747328959339,-400.0,0.00010997,2]
[361188304,1747328959360,-400.0,0.00010997,2]
[361188305,1747328959386,-266.92025641,0.00010997,2]